fUSD/lending_fUSD_20250811
["ID","MTS","AMOUNT","RATE_DAILY","PERIOD"]
[378627066,1754929855731,-452.6,0.00016986,2]
[378627068,1754929855740,-586.53,0.00016986,2]
[378627070,1754929855749,-620.12,0.00016986,2]
[378627072,1754929855758,-846.71,0.00016986,2]
[378627074,1754929855768,-751.14,0.00016986,2]
[378627076,1754929855777,-798.63,0.00016986,2]
[378627078,1754929855786,-158.120984,0.00016986,2]
[378627080,1754929855795,-151.0,0.00016986,2]
[378627082,1754929855804,-151.0,0.00016986,2]
[378627084,1754929855814,-151.0,0.00016986,2]
[378627086,1754929855823,-400.0,0.00016986,2]
[378627088,1754929855832,-400.0,0.00016986,2]
[378627090,1754929855842,-200.0,0.00016986,2]
[378627092,1754929855853,-689.2,0.00016986,2]
[378627094,1754929855862,-151.0,0.00016986,2]
[378627096,1754929855872,-400.0,0.00016986,2]
[378627098,1754929855881,-1020.42,0.00016986,2]
[378627100,1754929855891,-444.73,0.00016986,2]
[378627102,1754929855900,-452.31,0.00016986,2]
[378627105,1754929855910,-328.7092419,0.00016986,2]
[378627107,1754929855920,-151.0,0.00016986,2]
[378627109,1754929855929,-400.0,0.00016986,2]
[378627111,1754929855939,-3161.52,0.00016986,2]
[378627113,1754929855948,-5091.06,0.00016986,2]
[378627115,1754929855957,-400.0,0.00016986,2]
[378627117,1754929855967,-519.11,0.00016986,2]
[378627119,1754929855976,-544.380375,0.00016986,2]
[378627121,1754929855985,-544.380375,0.00016986,2]
[378627123,1754929855995,-681.9,0.00016986,2]
[378627125,1754929856004,-544.380375,0.00016986,2]
[378627127,1754929856014,-544.380375,0.00016986,2]
[378627129,1754929856023,-400.0,0.00016986,2]
[378627131,1754929856033,-400.0,0.00016986,2]
[378627133,1754929856043,-400.0,0.00016986,2]
[378627135,1754929856053,-493.26,0.00016986,2]
[378627137,1754929856062,-400.0,0.00016986,2]
[378627140,1754929856072,-1253.73,0.00016986,2]
[378627144,1754929856388,-400.0,0.00016986,2]
[378627145,1754929856401,-400.0,0.00016986,2]
[378627147,1754929856411,-400.0,0.00016986,2]
[378627150,1754929856420,-457.07,0.00016986,2]
[378627152,1754929856430,-400.0,0.00016986,2]
[378627153,1754929856441,-151.0,0.00016986,2]
[378627156,1754929856452,-436.35,0.00016986,2]
[378627158,1754929856461,-883.37,0.00016986,2]
[378627160,1754929856472,-400.0,0.00016986,2]
[378627162,1754929856482,-577.53,0.00016986,2]
[378627164,1754929856492,-798.5,0.00016986,2]
[378627166,1754929856501,-400.0,0.00016986,2]
[378627168,1754929856511,-400.0,0.00016986,2]
[378627170,1754929856520,-400.0,0.00016986,2]
[378627171,1754929856529,-625.26,0.00016986,2]
[378627173,1754929856539,-546.79,0.00016986,2]
[378627175,1754929856550,-756.47,0.00016986,2]
[378627177,1754929856560,-247.432826,0.00016986,2]
[378627180,1754929856570,-783.21,0.00016986,2]
[378627182,1754929856579,-400.0,0.00016986,2]
[378627184,1754929856588,-495.36,0.00016986,2]
[378627185,1754929856598,-837.23,0.00016986,2]
[378627186,1754929856607,-619.76,0.00016986,2]
[378627187,1754929856617,-1006.94,0.00016986,2]
[378627188,1754929856627,-1457.17,0.00016986,2]
[378627189,1754929856636,-1213.13,0.00016986,2]
[378627190,1754929856645,-428.64,0.00016986,2]
[378627191,1754929856656,-285.787872,0.00016986,2]
[378627192,1754929856667,-607.13,0.00016986,2]
[378627193,1754929856677,-285.787872,0.00016986,2]
[378627194,1754929856687,-676.56,0.00016986,2]
[378627195,1754929856696,-285.787872,0.00016986,2]
[378627196,1754929856705,-285.787872,0.00016986,2]
[378627197,1754929856714,-744.5,0.00016986,2]
[378627198,1754929856723,-625.79,0.00016986,2]
[378627199,1754929856733,-713.45,0.00016986,2]
[378627200,1754929856742,-400.0,0.00016986,2]
[378627201,1754929856751,-1885.63,0.00016986,2]
[378627202,1754929856761,-571.9,0.00016986,2]
[378627203,1754929856770,-1016.2,0.00016986,2]
[378627204,1754929856780,-722.52,0.00016986,2]
[378627205,1754929856789,-559.49,0.00016986,2]
[378627207,1754929856800,-400.0,0.00016986,2]
[378627208,1754929856809,-1739.01,0.00016986,2]
[378627210,1754929856818,-515.68,0.00016986,2]
[378627212,1754929856828,-400.0,0.00016986,2]
[378627214,1754929856838,-501.78,0.00016986,2]
[378627216,1754929856847,-400.0,0.00016986,2]
[378627218,1754929856857,-1102.64,0.00016986,2]
[378627219,1754929856866,-769.01,0.00016986,2]
[378627220,1754929856877,-666.25,0.00016986,2]
[378627221,1754929856887,-2106.06,0.00016986,2]
[378627222,1754929856897,-1137.19,0.00016986,2]
[378627223,1754929856908,-400.0,0.00016986,2]
[378627224,1754929856918,-151.0,0.00016986,2]
[378627225,1754929856928,-151.0,0.00016986,2]
[378627226,1754929856938,-857.98,0.00016986,2]
[378627227,1754929856947,-510.66,0.00016986,2]
[378627228,1754929856957,-1824.83,0.00016986,2]
[378627229,1754929856967,-400.0,0.00016986,2]
[378627230,1754929856976,-400.0,0.00016986,2]
[378627231,1754929856986,-1125.24,0.00016986,2]
[378627232,1754929856995,-400.0,0.00016986,2]
[378627233,1754929857005,-400.0,0.00016986,2]
[378627234,1754929857014,-400.0,0.00016986,2]
[378627235,1754929857024,-711.15,0.00016986,2]
[378627236,1754929857033,-432.07,0.00016986,2]
[378627237,1754929857043,-970.15,0.00016986,2]
[378627238,1754929857052,-458.25,0.00016986,2]
[378627239,1754929857061,-798.19,0.00016986,2]
[378627240,1754929857070,-792.18,0.00016986,2]
[378627241,1754929857080,-3361.74,0.00016986,2]
[378627242,1754929857090,-1030.35,0.00016986,2]
[378627243,1754929857100,-699.24,0.00016986,2]
[378627244,1754929857110,-720.63,0.00016986,2]
[378627245,1754929857120,-1163.5,0.00016986,2]
[378627246,1754929857129,-1507.98,0.00016986,2]
[378627247,1754929857139,-400.0,0.00016986,2]
[378627249,1754929857149,-471.49,0.00016986,2]
[378627251,1754929857159,-575.33,0.00016986,2]
[378627252,1754929857169,-1407.52,0.00016986,2]
[378627254,1754929857178,-400.0,0.00016986,2]
[378627255,1754929857189,-3044.62,0.00016986,2]
[378627256,1754929857198,-1247.14,0.00016986,2]
[378627257,1754929857209,-755.75,0.00016986,2]
[378627258,1754929857218,-980.59,0.00016986,2]
[378627259,1754929857228,-891.74,0.00016986,2]
[378627260,1754929857238,-400.0,0.00016986,2]
[378627261,1754929857249,-715.75,0.00016986,2]
[378627262,1754929857259,-400.0,0.00016986,2]
[378627263,1754929857268,-750.55,0.00016986,2]
[378627264,1754929857277,-1181.59,0.00016986,2]
[378627265,1754929857286,-529.6,0.00016986,2]
[378627266,1754929857296,-400.0,0.00016986,2]
[378627267,1754929857305,-731.72,0.00016986,2]
[378627268,1754929857314,-543.87,0.00016986,2]
[378627269,1754929857324,-1315.19,0.00016986,2]
[378627270,1754929857334,-206.31,0.00016986,2]
[378627271,1754929857343,-1755.07,0.00016986,2]
[378627272,1754929857352,-400.0,0.00016986,2]
[378627273,1754929857362,-553.26,0.00016986,2]
[378627274,1754929857371,-1359.48,0.00016986,2]
[378627275,1754929857380,-3204.41,0.00016986,2]
[378627276,1754929857390,-10562.43,0.00016986,2]
[378627277,1754929857403,-400.0,0.00016986,2]
[378627278,1754929857412,-400.0,0.00016986,2]
[378627279,1754929857422,-5313.72,0.00016986,2]
[378627280,1754929857432,-427.84,0.00016986,2]
[378627281,1754929857442,-1012.37,0.00016986,2]
[378627282,1754929857452,-746.9,0.00016986,2]
[378627283,1754929857462,-617.45,0.00016986,2]
[378627284,1754929857472,-400.0,0.00016986,2]
[378627285,1754929857482,-1648.32,0.00016986,2]
[378627286,1754929857491,-958.74,0.00016986,2]
[378627287,1754929857501,-2038.43,0.00016986,2]
[378627288,1754929857510,-1958.92,0.00016986,2]
[378627289,1754929857519,-400.0,0.00016986,2]
[378627290,1754929857528,-772.42,0.00016986,2]
[378627291,1754929857538,-1134.53,0.00016986,2]
[378627292,1754929857548,-830.26,0.00016986,2]
[378627294,1754929857557,-792.66,0.00016986,2]
[378627296,1754929857566,-1135.49,0.00016986,2]
[378627298,1754929857575,-914.28,0.00016986,2]
[378627300,1754929857586,-580.26,0.00016986,2]
[378627302,1754929857595,-733.88,0.00016986,2]
[378627304,1754929857604,-1119.96,0.00016986,2]
[378627306,1754929857613,-1394.48,0.00016986,2]
[378627308,1754929857622,-1356.98,0.00016986,2]
[378627310,1754929857631,-1259.56,0.00016986,2]
[378627312,1754929857641,-1593.29,0.00016986,2]
[378627314,1754929857653,-452.96,0.00016986,2]
[378627317,1754929857662,-3617.56,0.00016986,2]
[378627319,1754929857672,-417.58,0.00016986,2]
[378627321,1754929857681,-400.0,0.00016986,2]
[378627323,1754929857690,-844.66,0.00016986,2]
[378627325,1754929857699,-529.02,0.00016986,2]
[378627326,1754929857708,-629.55,0.00016986,2]
[378627327,1754929857717,-450.55,0.00016986,2]
[378627328,1754929857727,-536.14,0.00016986,2]
[378627329,1754929857736,-1164.98,0.00016986,2]
[378627330,1754929857745,-1029.0,0.00016986,2]
[378627331,1754929857754,-711.64,0.00016986,2]
[378627332,1754929857763,-400.0,0.00016986,2]
[378627333,1754929857773,-675.0,0.00016986,2]
[378627334,1754929857782,-2335.03,0.00016986,2]
[378627335,1754929857792,-1104.95,0.00016986,2]
[378627336,1754929857801,-1649.1,0.00016986,2]
[378627337,1754929857810,-2376.76,0.00016986,2]
[378627338,1754929857820,-995.64,0.00016986,2]
[378627339,1754929857829,-698.08,0.00016986,2]
[378627340,1754929857839,-942.85,0.00016986,2]
[378627341,1754929857848,-710.53,0.00016986,2]
[378627342,1754929857858,-1127.37,0.00016986,2]
[378627343,1754929857867,-2016.97,0.00016986,2]
[378627344,1754929857877,-1227.65,0.00016986,2]
[378627345,1754929857886,-1353.18,0.00016986,2]
[378627346,1754929857895,-3156.47,0.00016986,2]
[378627347,1754929857905,-2430.97,0.00016986,2]
[378627348,1754929857915,-513.7,0.00016986,2]
[378627349,1754929857924,-877.47,0.00016986,2]
[378627350,1754929857933,-872.62,0.00016986,2]
[378627351,1754929857943,-1472.33,0.00016986,2]
[378627352,1754929857952,-1214.75,0.00016986,2]
[378627353,1754929857961,-955.83,0.00016986,2]
[378627354,1754929857971,-1056.05,0.00016986,2]
[378627355,1754929857980,-958.05,0.00016986,2]
[378627356,1754929857990,-1000.0,0.00016986,2]
[378627357,1754929857999,-1300.09,0.00016986,2]
[378627358,1754929858010,-1196.37,0.00016986,2]
[378627360,1754929858019,-1124.93,0.00016986,2]
[378627362,1754929858029,-817.52,0.00016986,2]
[378627364,1754929858038,-304.997192,0.00016986,2]
[378627366,1754929858048,-1809.37,0.00016986,2]
[378627368,1754929858057,-304.997192,0.00016986,2]
[378627370,1754929858066,-1624.45,0.00016986,2]
[378627372,1754929858076,-1113.97,0.00016986,2]
[378627374,1754929858085,-1729.58,0.00016986,2]
[378627376,1754929858094,-337.25,0.00016986,2]
[378627378,1754929858104,-1351.51,0.00016986,2]
[378627380,1754929858113,-400.0,0.00016986,2]
[378627383,1754929858123,-685.65,0.00016986,2]
[378627385,1754929858133,-612.68,0.00016986,2]
[378627387,1754929858142,-1315.18,0.00016986,2]
[378627389,1754929858151,-522.78,0.00016986,2]
[378627391,1754929858161,-630.83,0.00016986,2]
[378627393,1754929858171,-2464.68,0.00016986,2]
[378627395,1754929858180,-400.0,0.00016986,2]
[378627397,1754929858190,-594.68,0.00016986,2]
[378627399,1754929858198,-400.0,0.00016986,2]
[378627401,1754929858208,-726.1,0.00016986,2]
[378627403,1754929858217,-1215.95,0.00016986,2]
[378627405,1754929858226,-1526.56,0.00016986,2]
[378627407,1754929858235,-611.34,0.00016986,2]
[378627409,1754929858244,-1144.11,0.00016986,2]
[378627411,1754929858253,-3026.62,0.00016986,2]
[378627413,1754929858262,-438.05,0.00016986,2]
[378627415,1754929858271,-1104.14,0.00016986,2]
[378627417,1754929858280,-2900.51,0.00016986,2]
[378627419,1754929858289,-567.5,0.00016986,2]
[378627421,1754929858298,-466.92,0.00016986,2]
[378627423,1754929858307,-2172.83,0.00016986,2]
[378627425,1754929858316,-1280.43,0.00016986,2]
[378627427,1754929858325,-661.89,0.00016986,2]
[378627429,1754929858334,-1589.62,0.00016986,2]
[378627431,1754929858343,-1056.77,0.00016986,2]
[378627433,1754929858352,-452.17,0.00016986,2]
[378627435,1754929858362,-151.0,0.00016986,2]
[378627437,1754929858370,-400.0,0.00016986,2]
[378627438,1754929858381,-2171.68,0.00016986,2]
[378627440,1754929858391,-1195.69,0.00016986,2]
[378627442,1754929858404,-1126.13,0.00016986,2]
[378627444,1754929858414,-1452.17,0.00016986,2]
[378627447,1754929858423,-1740.43,0.00016986,2]
[378627449,1754929858433,-1322.15,0.00016986,2]
[378627451,1754929858443,-480.45,0.00016986,2]
[378627453,1754929858452,-400.0,0.00016986,2]
[378627455,1754929858461,-1717.36,0.00016986,2]
[378627457,1754929858470,-1438.51,0.00016986,2]
[378627459,1754929858480,-1860.31,0.00016986,2]
[378627461,1754929858488,-980.21,0.00016986,2]
[378627463,1754929858498,-569.65,0.00016986,2]
[378627465,1754929858507,-3097.48,0.00016986,2]
[378627467,1754929858516,-400.0,0.00016986,2]
[378627469,1754929858525,-3145.01,0.00016986,2]
[378627471,1754929858535,-702.36,0.00016986,2]
[378627473,1754929858544,-1063.63,0.00016986,2]
[378627475,1754929858553,-1272.84,0.00016986,2]
[378627477,1754929858563,-1211.0,0.00016986,2]
[378627479,1754929858572,-1127.35,0.00016986,2]
[378627481,1754929858582,-2235.72,0.00016986,2]
[378627483,1754929858590,-917.33,0.00016986,2]
[378627485,1754929858600,-591.21,0.00016986,2]
[378627487,1754929858609,-153.77456,0.00016986,2]
[378627489,1754929858618,-965.62,0.00016986,2]
[378627491,1754929858627,-843.71,0.00016986,2]
[378627493,1754929858636,-400.0,0.00016986,2]
[378627495,1754929858646,-843.4,0.00016986,2]
[378627497,1754929858656,-400.0,0.00016986,2]
[378627499,1754929858667,-400.0,0.00016986,2]
[378627501,1754929858676,-201.377824,0.00016986,2]
[378627503,1754929858684,-916.68,0.00016986,2]
[378627505,1754929858694,-417.33,0.00016986,2]
[378627516,1754929858787,-201.377824,0.00016986,2]
[378627518,1754929858796,-1168.53,0.00016986,2]
[378627520,1754929858805,-151.0,0.00016986,2]
[378627522,1754929858814,-201.377824,0.00016986,2]
[378627524,1754929858824,-675.08,0.00016986,2]
[378627526,1754929858833,-682.33,0.00016986,2]
[378627528,1754929858842,-201.377824,0.00016986,2]
[378627530,1754929858851,-1236.56,0.00016986,2]
[378627532,1754929858860,-586.35,0.00016986,2]
[378627534,1754929858869,-1220.0,0.00016986,2]
[378627536,1754929858879,-1352.62,0.00016986,2]
[378627538,1754929858889,-783.18,0.00016986,2]
[378627540,1754929858898,-1263.6,0.00016986,2]
[378627542,1754929858908,-1187.0,0.00016986,2]
[378627544,1754929858917,-940.25,0.00016986,2]
[378627546,1754929858926,-1889.86,0.00016986,2]
[378627548,1754929858935,-1394.17,0.00016986,2]
[378627551,1754929858945,-1956.84,0.00016986,2]
[378627553,1754929858954,-400.0,0.00016986,2]
[378627555,1754929858963,-1247.72,0.00016986,2]
[378627557,1754929858973,-421.18,0.00016986,2]
[378627559,1754929858982,-468.2,0.00016986,2]
[378627561,1754929858991,-535.87,0.00016986,2]
[378627563,1754929859002,-2072.32,0.00016986,2]
[378627565,1754929859011,-1074.58,0.00016986,2]
[378627567,1754929859020,-954.01,0.00016986,2]
[378627569,1754929859029,-1274.32,0.00016986,2]
[378627571,1754929859038,-400.0,0.00016986,2]
[378627573,1754929859047,-1121.87,0.00016986,2]
[378627575,1754929859056,-400.0,0.00016986,2]
[378627577,1754929859065,-1718.25,0.00016986,2]
[378627579,1754929859074,-400.0,0.00016986,2]
[378627581,1754929859083,-2659.04,0.00016986,2]
[378627583,1754929859091,-400.0,0.00016986,2]
[378627585,1754929859101,-3699.92,0.00016986,2]
[378627587,1754929859110,-465.79,0.00016986,2]
[378627589,1754929859118,-568.25,0.00016986,2]
[378627591,1754929859128,-802.47,0.00016986,2]
[378627593,1754929859136,-514.54,0.00016986,2]
[378627595,1754929859146,-267.52284,0.00016986,2]
[378627597,1754929859155,-400.0,0.00016986,2]
[378627599,1754929859164,-150.0,0.00016986,2]
[378627601,1754929859173,-1000.0,0.00016986,2]
[378627603,1754929859182,-1000.0,0.00016986,2]
[378627605,1754929859191,-1000.0,0.00016986,2]
[378627607,1754929859200,-1000.0,0.00016986,2]
[378627609,1754929859209,-1000.0,0.00016986,2]
[378627611,1754929859218,-1000.0,0.00016986,2]
[378627613,1754929859227,-1000.0,0.00016986,2]
[378627615,1754929859236,-1000.0,0.00016986,2]
[378627617,1754929859245,-1000.0,0.00016986,2]
[378627619,1754929859254,-1000.0,0.00016986,2]
[378627621,1754929859263,-1000.0,0.00016986,2]
[378627623,1754929859272,-1000.0,0.00016986,2]
[378627625,1754929859281,-1000.0,0.00016986,2]
[378627627,1754929859289,-1000.0,0.00016986,2]
[378627629,1754929859298,-1000.0,0.00016986,2]
[378627631,1754929859307,-1000.0,0.00016986,2]
[378627633,1754929859317,-1000.0,0.00016986,2]
[378627635,1754929859327,-1000.0,0.00016986,2]
[378627637,1754929859336,-1000.0,0.00016986,2]
[378627639,1754929859345,-1000.0,0.00016986,2]
[378627641,1754929859353,-1000.0,0.00016986,2]
[378627643,1754929859362,-1000.0,0.00016986,2]
[378627645,1754929859371,-1000.0,0.00016986,2]
[378627647,1754929859380,-1000.0,0.00016986,2]
[378627649,1754929859389,-1000.0,0.00016986,2]
[378627651,1754929859402,-1000.0,0.00016986,2]
[378627653,1754929859412,-1000.0,0.00016986,2]
[378627655,1754929859421,-1000.0,0.00016986,2]
[378627657,1754929859430,-1000.0,0.00016986,2]
[378627659,1754929859441,-1000.0,0.00016986,2]
[378627661,1754929859450,-1000.0,0.00016986,2]
[378627663,1754929859459,-1000.0,0.00016986,2]
[378627665,1754929859468,-1000.0,0.00016986,2]
[378627667,1754929859478,-1000.0,0.00016986,2]
[378627669,1754929859488,-1000.0,0.00016986,2]
[378627671,1754929859497,-1000.0,0.00016986,2]
[378627673,1754929859506,-1000.0,0.00016986,2]
[378627675,1754929859515,-1000.0,0.00016986,2]
[378627677,1754929859524,-1000.0,0.00016986,2]
[378627679,1754929859533,-1000.0,0.00016986,2]
[378627681,1754929859542,-1000.0,0.00016986,2]
[378627683,1754929859551,-1000.0,0.00016986,2]
[378627685,1754929859561,-1000.0,0.00016986,2]
[378627687,1754929859570,-1000.0,0.00016986,2]
[378627689,1754929859579,-1000.0,0.00016986,2]
[378627691,1754929859589,-1000.0,0.00016986,2]
[378627693,1754929859598,-1000.0,0.00016986,2]
[378627694,1754929859607,-1000.0,0.00016986,2]
[378627696,1754929859616,-1000.0,0.00016986,2]
[378627698,1754929859625,-1000.0,0.00016986,2]
[378627700,1754929859634,-1000.0,0.00016986,2]
[378627702,1754929859643,-1000.0,0.00016986,2]
[378627704,1754929859652,-1000.0,0.00016986,2]
[378627705,1754929859662,-1178.09,0.00016986,2]
[378627706,1754929859671,-1000.0,0.00016999,2]
[378627708,1754929859680,-347.867776,0.00016999,2]
[378627710,1754929859689,-347.867776,0.00016999,2]
[378627712,1754929859698,-1000.0,0.00016999,2]
[378627714,1754929859708,-150.0,0.00017,2]
[378627716,1754929859717,-5020.197363,0.00017,2]
[378627718,1754929859726,-182.909,0.00017005,2]
[378627720,1754929859735,-204.857396,0.00017021,2]
[378627722,1754929859744,-204.857396,0.00017021,2]
[378627724,1754929859753,-2215.81703082,0.00017032,2]
[378627726,1754929859762,-150.0,0.00017033,2]
[378627728,1754929859770,-150.0,0.00017033,2]
[378627730,1754929859779,-150.0,0.00017033,2]
[378627732,1754929859788,-150.0,0.00017033,2]
[378627734,1754929859797,-304.997192,0.00017068,2]
[378627736,1754929859806,-304.997192,0.00017068,2]
[378627738,1754929859815,-152.291936,0.00017068,2]
[378627740,1754929859824,-151.0,0.00017068,2]
[378627742,1754929859833,-1043.0,0.00017068,2]
[378627744,1754929859842,-598.0,0.00017068,2]
[378627746,1754929859851,-2027.0,0.00017068,2]
[378627748,1754929859861,-565.0,0.00017068,2]
[378627750,1754929859870,-1295.0,0.00017068,2]
[378627752,1754929859880,-1654.0,0.00017068,2]
[378627754,1754929859889,-893.0,0.00017068,2]
[378627756,1754929859898,-1171.0,0.00017068,2]
[378627758,1754929859908,-3367.0,0.00017068,2]
[378627760,1754929859917,-810.0,0.00017068,2]
[378627761,1754929859926,-151.0,0.00017087,2]
[378627763,1754929859935,-253.434,0.00017087,2]
[378627765,1754929859944,-249.618,0.00017087,2]
[378627767,1754929859953,-186.042,0.00017087,2]
[378627769,1754929859962,-204.635,0.00017087,2]
[378627771,1754929859971,-206.702,0.00017087,2]
[378627773,1754929859980,-250.0,0.00017087,2]
[378627775,1754929859989,-159.686,0.00017087,2]
[378627777,1754929859998,-153.0,0.00017087,2]
[378627779,1754929860007,-154.0,0.00017087,2]
[378627781,1754929860017,-150.0,0.0001709,2]
[378627783,1754929860027,-150.0,0.00017096,2]
[378627785,1754929860037,-150.0,0.00017116,2]
[378627787,1754929860046,-295.0,0.00017123,2]
[378627788,1754929860056,-150.0,0.0001714,2]
[378627790,1754929860066,-500.0,0.00017158,2]
[378627792,1754929860076,-146023.1313483,0.00017159,2]
[378627842,1754929860556,-1742.40049298,0.00017159,2]
[378627845,1754929860568,-421.21779999,0.00017159,2]
[378627847,1754929860584,-6246.50973598,0.00017159,2]
[378627850,1754929860598,-4929.45936371,0.00017159,2]
[378627852,1754929860609,-9523.99957396,0.00017159,2]
[378627854,1754929860621,-2398.80337334,0.00017159,2]
[378627856,1754929860632,-550.517504,0.00017159,2]
[378627858,1754929860643,-1067.6047624,0.00017159,2]
[378627860,1754929860654,-2304.42325273,0.00017159,2]
[378627863,1754929860671,-927.77,0.00017159,2]
[378627865,1754929860682,-1743.75217009,0.00017159,2]
[378627871,1754929860736,-400.0,0.00016712,2]
[378627873,1754929860746,-5319.21228869,0.00017159,2]
[378627875,1754929860757,-6549.54019973,0.00017159,2]
[378627878,1754929860769,-2050.699985,0.00017159,2]
[378627880,1754929860780,-7425.25327817,0.00017159,2]
[378627882,1754929860792,-45422.748817,0.00017159,2]
[378627962,1754929862041,-507.65,0.00016438,2]
[378627963,1754929862051,-158.68756378,0.00016511,2]
[378627964,1754929862061,-400.0,0.00016611,2]
[378627965,1754929862070,-400.0,0.00016611,2]
[378627966,1754929862080,-507.65,0.00016712,2]
[378627967,1754929862090,-1709.03,0.00016985,2]
[378627968,1754929862100,-728.45,0.00016985,2]
[378627969,1754929862110,-400.0,0.00016986,2]
[378627970,1754929862119,-507.65,0.00016986,2]
[378627971,1754929862128,-728.45,0.00017158,2]
[378627972,1754929862137,-667.09825122,0.00017159,2]
[378627973,1754929862149,-13787.90273499,0.00017159,2]
[378627974,1754929862174,-291.71774758,0.00016438,2]
[378627975,1754929862185,-108.28225242,0.00016438,2]
[378627976,1754929862195,-1357.63845172,0.00017159,2]
[378627977,1754929862220,-400.0,0.00016438,2]
[378627978,1754929862234,-17382.77653174,0.00017159,2]
[378627979,1754929862359,-1253.0,0.00016758,2]
[378627980,1754929862369,-86152.27703959,0.00017159,2]
[378627981,1754929862383,-336.248,0.00017159,2]
[378627982,1754929862395,-9493.69974406,0.00017159,2]
[378627987,1754929900973,181.95,0.00015739,2]
[378627989,1754930016093,289.7,0.00013699,2]
[378627994,1754930179858,1686.21106312,0.00021,30]
[378627995,1754930259038,251.47,0.00015777,2]
[378627997,1754930286046,170.0,0.00015739,7]
[378627998,1754930296024,204.16,0.00015739,2]
[378627999,1754930336448,150.0,9.7e-05,2]
[378628000,1754930336866,150.0,0.0001088,2]
[378628001,1754930337299,150.0,0.0001207,2]
[378628002,1754930337758,150.0,0.0001325,2]
[378628003,1754930338186,150.0,0.0001443,2]
[378628004,1754930338640,150.0,0.0001562,2]
[378628005,1754930355457,509.0,0.00015332,2]
[378628009,1754930704780,248.0,0.00016004,2]
[378628010,1754930717091,509.0,0.00015573,2]
[378628011,1754930764116,1000.0,0.00015768,2]
[378628012,1754930835517,167.15,0.00015804,2]
[378628013,1754930851813,150.0,9.7e-05,2]
[378628014,1754930852232,150.0,0.0001088,2]
[378628015,1754930852649,150.0,0.0001207,2]
[378628017,1754930900664,503.86,0.00021,30]
[378628021,1754931003948,166.0,0.00016004,2]
[378628039,1754931032338,-176.27203626,0.00016238,2]
[378628040,1754931032348,-600.96135277,0.00016337,2]
[378628041,1754931032358,-1200.0,0.00016337,2]
[378628042,1754931032367,-300.0,0.00016338,2]
[378628043,1754931032377,-300.0,0.00016338,2]
[378628044,1754931032387,-3333.52028846,0.00016338,2]
[378628045,1754931032397,-157.20941109,0.00016338,2]
[378628046,1754931032406,-152.23967472,0.00016338,2]
[378628047,1754931032416,-2825.02212239,0.00016338,2]
[378628048,1754931032426,-251.96,0.00016428,2]
[378628049,1754931032436,-152.35212484,0.00016428,2]
[378628050,1754931032445,-231.28369723,0.00016428,2]
[378628051,1754931032455,-250.0,0.00016428,2]
[378628052,1754931032464,-500.0,0.00016428,2]
[378628053,1754931032473,-250.0,0.00016428,2]
[378628054,1754931032482,-500.0,0.00016428,2]
[378628055,1754931032492,-500.0,0.00016428,2]
[378628056,1754931032501,-500.0,0.00016428,2]
[378628057,1754931032511,-250.0,0.00016428,2]
[378628058,1754931032520,-500.0,0.00016428,2]